fUST/lending_fUST_20260601
["ID","MTS","AMOUNT","RATE_DAILY","PERIOD"]
[423590239,1780252049000,-500.0,0.00013695,2]
[423590238,1780252049000,-500.0,0.00013695,2]
[423590237,1780252049000,-500.0,0.00013695,2]
[423590257,1780252049000,-500.0,0.00013695,2]
[423590246,1780252049000,-500.0,0.00013695,2]
[423590259,1780252049000,-500.0,0.00013695,2]
[423590253,1780252049000,-500.0,0.00013695,2]
[423590262,1780252049000,-500.0,0.00013695,2]
[423590283,1780252049000,-309.23457172,0.00013698,2]
[423590281,1780252049000,-500.89828091,0.00013698,2]
[423590261,1780252049000,-500.0,0.00013695,2]
[423590279,1780252049000,-500.0,0.00013698,2]
[423590278,1780252049000,-500.0,0.00013698,2]
[423590277,1780252049000,-500.62697601,0.00013698,2]
[423590276,1780252049000,-320.34932504,0.00013697,2]
[423590275,1780252049000,-500.0,0.00013695,2]
[423590274,1780252049000,-500.0,0.00013695,2]
[423590273,1780252049000,-500.0,0.00013695,2]
[423590272,1780252049000,-500.0,0.00013695,2]
[423590280,1780252049000,-500.98866028,0.00013698,2]
[423590269,1780252049000,-500.0,0.00013695,2]
[423590271,1780252049000,-204.12871207,0.00013695,2]
[423590264,1780252049000,-500.0,0.00013695,2]
[423590263,1780252049000,-500.0,0.00013695,2]
[423590265,1780252049000,-500.0,0.00013695,2]
[423590260,1780252049000,-500.0,0.00013695,2]
[423590282,1780252049000,-500.0,0.00013698,2]
[423590266,1780252049000,-500.0,0.00013695,2]
[423590268,1780252049000,-500.0,0.00013695,2]
[423590270,1780252049000,-500.0,0.00013695,2]
[423590267,1780252049000,-500.0,0.00013695,2]
[423590344,1780252232000,-220.4128712,0.00013697,2]
[423590349,1780252232000,-500.0,0.00013698,2]
[423590346,1780252232000,-500.0,0.00013697,3]
[423590357,1780252232000,-500.0,0.00013698,2]
[423590359,1780252232000,-500.87795346,0.00013698,2]
[423590347,1780252232000,-500.0,0.00013698,2]
[423590343,1780252232000,-500.0,0.00013697,2]
[423590345,1780252232000,-500.0,0.00013697,2]
[423590338,1780252232000,-500.0,0.00013697,2]
[423590339,1780252232000,-500.0,0.00013697,2]
[423590342,1780252232000,-500.0,0.00013697,2]
[423590340,1780252232000,-500.0,0.00013697,2]
[423590335,1780252232000,-5000.0,0.00013561,2]
[423590336,1780252232000,-159.54364199,0.00013598,2]
[423590333,1780252232000,-3181.22291884,0.00013425,2]
[423590330,1780252232000,-1818.77708116,0.00013425,2]
[423590341,1780252232000,-500.0,0.00013697,2]
[423590350,1780252232000,-500.0,0.00013698,2]
[423590348,1780252232000,-500.0,0.00013698,2]
[423590351,1780252232000,-500.0,0.00013698,2]
[423590354,1780252232000,-500.0,0.00013698,2]
[423590372,1780252232000,-500.0,0.00013698,2]
[423590371,1780252232000,-501.00053133,0.00013698,2]
[423590361,1780252232000,-531.0107082,0.00013698,2]
[423590370,1780252232000,-563.43,0.00013698,2]
[423590369,1780252232000,-500.0,0.00013698,2]
[423590362,1780252232000,-3357.5629,0.00013698,2]
[423590364,1780252232000,-500.0,0.00013698,2]
[423590367,1780252232000,-558.75375313,0.00013698,2]
[423590373,1780252232000,-500.0,0.00013698,2]
[423590366,1780252232000,-500.0,0.00013698,2]
[423590368,1780252232000,-500.0,0.00013698,2]
[423590360,1780252232000,-500.0,0.00013698,2]
[423590365,1780252232000,-500.0,0.00013698,2]
[423590356,1780252232000,-500.0,0.00013698,2]
[423590353,1780252232000,-534.79,0.00013698,2]
[423590355,1780252232000,-154.89285204,0.00013698,2]
[423590363,1780252232000,-557.92780392,0.00013698,2]
[423590352,1780252232000,-500.0,0.00013698,2]
[423590389,1780252233000,-648.07,0.00013698,2]
[423590388,1780252233000,-500.0,0.00013698,2]
[423590391,1780252233000,-80.83635274,0.00013698,2]
[423590397,1780252233000,-500.0,0.00013698,2]
[423590398,1780252233000,-500.0,0.00013698,2]
[423590390,1780252233000,-419.16364726,0.00013698,2]
[423590393,1780252233000,-113.99640463,0.00013698,2]
[423590394,1780252233000,-500.0,0.00013698,2]
[423590392,1780252233000,-388.91144355,0.00013698,2]
[423590399,1780252233000,-502.07127785,0.00013698,2]
[423590396,1780252233000,-500.0,0.00013698,2]
[423590384,1780252233000,-567.58,0.00013698,2]
[423590376,1780252233000,-500.0,0.00013698,2]
[423590381,1780252233000,-500.0,0.00013698,2]
[423590383,1780252233000,-520.33209522,0.00013698,2]
[423590379,1780252233000,-500.0,0.00013698,2]
[423590380,1780252233000,-500.0,0.00013698,2]
[423590378,1780252233000,-501.61049014,0.00013698,2]
[423590382,1780252233000,-500.0,0.00013698,2]
[423590374,1780252233000,-500.0,0.00013698,2]
[423590377,1780252233000,-500.0,0.00013698,2]
[423590385,1780252233000,-500.0,0.00013698,2]
[423590375,1780252233000,-500.0,0.00013698,2]
[423590395,1780252233000,-500.0,0.00013698,2]
[423590387,1780252233000,-500.0,0.00013698,2]
[423590401,1780252233000,-500.0,0.00013698,2]
[423590386,1780252233000,-368.31783327,0.00013698,2]
[423590411,1780252233000,-500.0,0.00013698,2]
[423590412,1780252233000,-500.0,0.00013698,2]
[423590427,1780252233000,-576.9,0.00013698,2]
[423590425,1780252233000,-500.601898,0.00013698,2]
[423590426,1780252233000,-500.0,0.00013698,2]
[423590423,1780252233000,-500.0,0.00013698,2]
[423590418,1780252233000,-264.53577551,0.00013698,2]
[423590428,1780252233000,-5.36090988,0.00013698,2]
[423590422,1780252233000,-500.60141661,0.00013698,2]
[423590421,1780252233000,-500.0,0.00013698,2]
[423590419,1780252233000,-500.0,0.00013698,2]
[423590417,1780252233000,-235.46422449,0.00013698,2]
[423590416,1780252233000,-500.28470861,0.00013698,2]
[423590415,1780252233000,-500.0,0.00013698,2]
[423590420,1780252233000,-500.0,0.00013698,2]
[423590413,1780252233000,-500.0,0.00013698,2]
[423590424,1780252233000,-500.0,0.00013698,2]
[423590402,1780252233000,-500.0,0.00013698,2]
[423590400,1780252233000,-500.19240763,0.00013698,2]
[423590403,1780252233000,-500.0,0.00013698,2]
[423590404,1780252233000,-500.0,0.00013698,2]
[423590406,1780252233000,-500.0,0.00013698,2]
[423590405,1780252233000,-500.0,0.00013698,2]
[423590407,1780252233000,-500.0,0.00013698,2]
[423590409,1780252233000,-500.31529146,0.00013698,2]
[423590408,1780252233000,-500.0,0.00013698,2]
[423590414,1780252233000,-500.0,0.00013698,2]
[423590410,1780252233000,-500.0,0.00013698,2]
[423590544,1780252239000,-500.0,0.00013698,2]
[423590574,1780252239000,-500.0,0.00013972,2]
[423590578,1780252239000,-166.57,0.00013972,2]
[423590564,1780252239000,-1928.2123,0.00013972,2]
[423590562,1780252239000,-452.45,0.00013972,2]
[423590556,1780252239000,-224.24452752,0.00013971,2]
[423590542,1780252239000,-500.0,0.00013698,2]
[423590540,1780252239000,-500.0,0.00013698,2]
[423590560,1780252239000,-194.99,0.00013972,2]
[423590558,1780252239000,-500.0,0.00013972,2]
[423590554,1780252239000,-177.19651166,0.00013872,2]
[423590576,1780252239000,-500.0,0.00013972,2]
[423590546,1780252239000,-500.65956743,0.00013698,2]
[423590580,1780252239000,-500.0,0.00013972,2]
[423590595,1780252239000,-500.0,0.00013972,2]
[423590582,1780252239000,-196.98,0.00013972,2]
[423590568,1780252239000,-500.0,0.00013972,2]
[423590570,1780252239000,-332.4,0.00013972,2]
[423590589,1780252239000,-500.0,0.00013972,2]
[423590583,1780252239000,-190.76542828,0.00013972,2]
[423590585,1780252239000,-610.26,0.00013972,2]
[423590587,1780252239000,-500.0,0.00013972,2]
[423590601,1780252239000,-500.0,0.00013972,2]
[423590591,1780252239000,-187.31,0.00013972,2]
[423590593,1780252239000,-500.0,0.00013972,2]
[423590599,1780252239000,-576.9,0.00013972,2]
[423590550,1780252239000,-1000.0,0.00013699,2]
[423590604,1780252239000,-500.0,0.00013972,2]
[423590566,1780252239000,-287.14462648,0.00013972,2]
[423590552,1780252239000,-707.24648,0.00013699,2]
[423590522,1780252239000,-500.0,0.00013698,2]
[423590538,1780252239000,-532.57815947,0.00013698,2]
[423590480,1780252239000,-5000.0,0.00013561,2]
[423590482,1780252239000,-495.17138285,0.00013698,2]
[423590486,1780252239000,-501.05765059,0.00013698,2]
[423590490,1780252239000,-500.0,0.00013698,2]
[423590488,1780252239000,-501.04232744,0.00013698,2]
[423590484,1780252239000,-500.37542544,0.00013698,2]
[423590506,1780252239000,-643.86843824,0.00013698,2]
[423590492,1780252239000,-500.0,0.00013698,2]
[423590494,1780252239000,-582.10885884,0.00013698,2]
[423590504,1780252239000,-500.0,0.00013698,2]
[423590496,1780252239000,-500.0,0.00013698,2]
[423590498,1780252239000,-500.0,0.00013698,2]
[423590503,1780252239000,-500.0,0.00013698,2]
[423590508,1780252239000,-500.0,0.00013698,2]
[423590501,1780252239000,-500.0,0.00013698,2]
[423590513,1780252239000,-500.0,0.00013698,2]
[423590520,1780252239000,-500.19686198,0.00013698,2]
[423590516,1780252239000,-500.0,0.00013698,2]
[423590606,1780252239000,-500.0,0.00013972,2]
[423590512,1780252239000,-500.0,0.00013698,2]
[423590526,1780252239000,-500.0,0.00013698,2]
[423590529,1780252239000,-235.92655581,0.00013698,2]
[423590518,1780252239000,-500.0,0.00013698,2]
[423590510,1780252239000,-500.0,0.00013698,2]
[423590524,1780252239000,-500.0,0.00013698,2]
[423590527,1780252239000,-500.0,0.00013698,2]
[423590532,1780252239000,-500.0,0.00013698,2]
[423590534,1780252239000,-500.0,0.00013698,2]
[423590536,1780252239000,-500.0,0.00013698,2]
[423590548,1780252239000,-549.475741,0.00013699,2]
[423590603,1780252239000,-500.0,0.00013972,2]
[423590572,1780252239000,-500.0,0.00013972,2]
[423590597,1780252239000,-500.0,0.00013972,2]
[423590672,1780252239000,-500.0,0.00014993,2]
[423590686,1780252239000,-411.07184334,0.00014993,2]
[423590674,1780252239000,-500.0,0.00014993,2]
[423590676,1780252239000,-500.0,0.00014993,2]
[423590688,1780252239000,-500.0,0.00014993,2]
[423590690,1780252239000,-500.0,0.00014993,2]
[423590678,1780252239000,-500.96094689,0.00014993,2]
[423590680,1780252239000,-500.0,0.00014993,2]
[423590682,1780252239000,-508.45157426,0.00014993,2]
[423590684,1780252239000,-88.92815666,0.00014993,2]
[423590692,1780252239000,-500.0,0.00014993,2]
[423590694,1780252239000,-163.938137,0.00014993,2]
[423590699,1780252239000,-27.73418757,0.00014993,2]
[423590697,1780252239000,-308.32767543,0.00014993,2]
[423590701,1780252239000,-500.0,0.00014993,2]
[423590713,1780252239000,-500.0,0.00014993,2]
[423590703,1780252239000,-500.0,0.00014993,2]
[423590705,1780252239000,-500.0,0.00014993,2]
[423590715,1780252239000,-500.0,0.00014993,2]
[423590711,1780252239000,-500.0,0.00014993,2]
[423590709,1780252239000,-500.0,0.00014993,2]
[423590707,1780252239000,-500.0,0.00014993,2]
[423590717,1780252239000,-500.0,0.00014993,2]
[423590721,1780252239000,-500.8855262,0.00014993,2]
[423590608,1780252239000,-545.49,0.00013972,2]
[423590718,1780252239000,-500.0,0.00014993,2]
[423590726,1780252239000,-500.0,0.00014993,2]
[423590724,1780252239000,-500.0,0.00014993,2]
[423590728,1780252239000,-500.0,0.00014993,2]
[423590670,1780252239000,-500.0,0.00014993,2]
[423590668,1780252239000,-500.0,0.00014993,2]
[423590722,1780252239000,-500.0,0.00014993,2]
[423590651,1780252239000,-500.0,0.00014993,2]
[423590666,1780252239000,-500.0,0.00014993,2]
[423590610,1780252239000,-500.0,0.00013972,2]
[423590612,1780252239000,-500.0,0.00013972,2]
[423590614,1780252239000,-500.0,0.00013972,2]
[423590618,1780252239000,-326.95461652,0.00013972,2]
[423590622,1780252239000,-500.0,0.00013972,2]
[423590620,1780252239000,-500.0,0.00013972,2]
[423590624,1780252239000,-500.0,0.00013972,2]
[423590626,1780252239000,-500.0,0.00013972,2]
[423590628,1780252239000,-500.0,0.00013972,2]
[423590632,1780252239000,-500.0,0.00014246,2]
[423590637,1780252239000,-576.9,0.00014794,2]
[423590639,1780252239000,-500.0,0.00014993,2]
[423590635,1780252239000,-549.475741,0.00014658,2]
[423590616,1780252239000,-173.04538348,0.00013972,2]
[423590630,1780252239000,-576.9,0.00014246,2]
[423590634,1780252239000,-576.9,0.0001452,2]
[423590646,1780252239000,-501.27976218,0.00014993,2]
[423590663,1780252239000,-500.0,0.00014993,2]
[423590647,1780252239000,-500.0,0.00014993,2]
[423590664,1780252239000,-500.0,0.00014993,2]
[423590661,1780252239000,-500.0,0.00014993,2]
[423590645,1780252239000,-501.01949098,0.00014993,2]
[423590657,1780252239000,-500.0,0.00014993,2]
[423590641,1780252239000,-500.0,0.00014993,2]
[423590658,1780252239000,-500.0,0.00014993,2]
[423590643,1780252239000,-500.0,0.00014993,2]
[423590649,1780252239000,-500.0,0.00014993,2]
[423590653,1780252239000,-500.96521673,0.00014993,2]
[423590655,1780252239000,-500.0,0.00014993,2]
[423590790,1780252240000,-500.0,0.00014993,2]
[423590794,1780252240000,-500.0,0.00014993,2]
[423590792,1780252240000,-500.0,0.00014993,2]
[423590798,1780252240000,-500.0,0.00014993,2]
[423590810,1780252240000,-500.0,0.00014993,2]
[423590812,1780252240000,-500.0,0.00014993,2]
[423590800,1780252240000,-500.0,0.00014993,2]
[423590802,1780252240000,-500.0,0.00014993,2]
[423590814,1780252240000,-512.0578181,0.00014993,2]
[423590805,1780252240000,-500.0,0.00014993,2]
[423590796,1780252240000,-500.0,0.00014993,2]
[423590823,1780252240000,-362.99525301,0.00014993,2]
[423590816,1780252240000,-321.01133525,0.00014993,2]
[423590834,1780252240000,-501.8610041,0.00014993,2]
[423590804,1780252240000,-436.26344689,0.00014993,2]
[423590818,1780252240000,-501.55105572,0.00014993,2]
[423590820,1780252240000,-514.94393821,0.00014993,2]
[423590824,1780252240000,-500.0,0.00014993,2]
[423590827,1780252240000,-500.0,0.00014993,2]
[423590830,1780252240000,-500.0,0.00014993,2]
[423590838,1780252240000,-224.07,0.00014993,2]
[423590832,1780252240000,-500.0,0.00014993,2]
[423590786,1780252240000,-500.26391712,0.00014993,2]
[423590807,1780252240000,-500.0,0.00014993,2]
[423590774,1780252240000,-500.0,0.00014993,2]
[423590745,1780252240000,-500.0,0.00014993,2]
[423590778,1780252240000,-500.0,0.00014993,2]
[423590733,1780252240000,-500.0,0.00014993,2]
[423590737,1780252240000,-500.0,0.00014993,2]
[423590739,1780252240000,-500.0,0.00014993,2]
[423590741,1780252240000,-495.0,0.00014993,2]
[423590735,1780252240000,-500.2344118,0.00014993,2]
[423590756,1780252240000,-500.61456742,0.00014993,2]
[423590747,1780252240000,-500.98329675,0.00014993,2]
[423590760,1780252240000,-500.0,0.00014993,2]
[423590768,1780252240000,-500.0,0.00014993,2]
[423590764,1780252240000,-500.75767198,0.00014993,2]
[423590750,1780252240000,-500.0,0.00014993,2]
[423590782,1780252240000,-500.0,0.00014993,2]
[423590754,1780252240000,-567.75747363,0.00014993,2]
[423590762,1780252240000,-500.0,0.00014993,2]
[423590766,1780252240000,-500.0,0.00014993,2]
[423590743,1780252240000,-500.55069225,0.00014993,2]
[423590758,1780252240000,-500.94277507,0.00014993,2]
[423590748,1780252240000,-500.0,0.00014993,2]
[423590770,1780252240000,-500.0,0.00014993,2]
[423590776,1780252240000,-500.0,0.00014993,2]
[423590788,1780252240000,-500.0,0.00014993,2]
[423590784,1780252240000,-500.0,0.00014993,2]
[423590772,1780252240000,-500.43476969,0.00014993,2]
[423590780,1780252240000,-500.0,0.00014993,2]
[423590752,1780252240000,-500.0,0.00014993,2]
[423590836,1780252240000,-500.0,0.00014993,2]
[423590858,1780252240000,-500.0,0.00014993,2]
[423590840,1780252240000,-503.36622058,0.00014993,2]
[423590902,1780252240000,-500.0,0.00014993,2]
[423590888,1780252240000,-500.0,0.00014993,2]
[423590904,1780252240000,-500.0,0.00014993,2]
[423590906,1780252240000,-500.62034196,0.00014993,2]
[423590908,1780252240000,-500.0,0.00014993,2]
[423590912,1780252240000,-500.0,0.00014993,2]
[423590910,1780252240000,-500.0,0.00014993,2]
[423590921,1780252240000,-500.0,0.00014994,2]
[423590916,1780252240000,-500.0,0.00014994,2]
[423590914,1780252240000,-500.0,0.00014994,2]
[423590918,1780252240000,-523.89647894,0.00014994,2]
[423590892,1780252240000,-500.0,0.00014993,2]
[423590929,1780252240000,-500.0,0.00014994,2]
[423590925,1780252240000,-500.0,0.00014994,2]
[423590923,1780252240000,-225.07600566,0.00014994,2]
[423590927,1780252240000,-500.0,0.00014994,2]
[423590931,1780252240000,-500.0,0.00014994,2]
[423590935,1780252240000,-500.0,0.00014994,2]
[423590937,1780252240000,-500.0,0.00014994,2]
[423590939,1780252240000,-500.0,0.00014994,2]
[423590945,1780252240000,-73494.04559471,0.00015,2]
[423590941,1780252240000,-500.0,0.00014994,2]
[423590942,1780252240000,-103524.35723937,0.00015,2]
[423590841,1780252240000,-504.7979628,0.00014993,2]
[423590919,1780252240000,-503.6558046,0.00014994,2]
[423590886,1780252240000,-515.96964893,0.00014993,2]
[423590933,1780252240000,-500.0,0.00014994,2]
[423590894,1780252240000,-500.0,0.00014993,2]
[423590846,1780252240000,-556.47,0.00014993,2]
[423590848,1780252240000,-501.643361,0.00014993,2]
[423590850,1780252240000,-500.0,0.00014993,2]
[423590852,1780252240000,-500.0,0.00014993,2]
[423590854,1780252240000,-501.90586945,0.00014993,2]
[423590844,1780252240000,-500.0,0.00014993,2]
[423590869,1780252240000,-500.0,0.00014993,2]
[423590867,1780252240000,-500.0,0.00014993,2]
[423590871,1780252240000,-500.0,0.00014993,2]
[423590873,1780252240000,-504.22901347,0.00014993,2]
[423590875,1780252240000,-500.0,0.00014993,2]
[423590856,1780252240000,-476.0575199,0.00014993,2]
[423590865,1780252240000,-500.60145046,0.00014993,2]
[423590890,1780252240000,-500.50556574,0.00014993,2]
[423590900,1780252240000,-500.0,0.00014993,2]
[423590863,1780252240000,-151.48,0.00014993,2]
[423590898,1780252240000,-500.0,0.00014993,2]
[423590882,1780252240000,-500.0,0.00014993,2]
[423590896,1780252240000,-500.0,0.00014993,2]
[423590878,1780252240000,-500.0,0.00014993,2]
[423590877,1780252240000,-167.30098897,0.00014993,2]
[423590861,1780252240000,-500.33451948,0.00014993,2]
[423590860,1780252240000,-500.0,0.00014993,2]
[423590880,1780252240000,-500.0,0.00014993,2]
[423590884,1780252240000,-500.0,0.00014993,2]
[423591030,1780252241000,-1806.30804927,0.00015,2]
[423591023,1780252241000,-500.0,0.00015,2]
[423591021,1780252241000,-533.21178026,0.00015,2]
[423591025,1780252241000,-789.69860033,0.00015,2]
[423590999,1780252241000,-1696.9519941,0.00015,2]
[423591386,1780252244000,-5754.85124172,0.00015,2]
[423591346,1780252244000,-2512.25604105,0.00015,2]
[423591377,1780252244000,-5379.26550189,0.00015,2]
[423591381,1780252244000,-12700.8620387,0.00015,2]
[423591379,1780252244000,-1990.70963771,0.00015,2]
[423591384,1780252244000,-54907.43701433,0.00015,2]
[423591792,1780252247000,-4249.40327599,0.00015,2]
[423591787,1780252247000,-454.42894458,0.00015,2]
[423591783,1780252247000,-760.34072277,0.00015,2]
[423591785,1780252247000,-62148.94328927,0.00015,2]
[423591790,1780252247000,-9919.80571104,0.00015,2]
[423591778,1780252247000,-2150.00499999,0.00015,2]
[423591780,1780252247000,-355.3,0.00015,2]
[423591775,1780252247000,-58533.26248063,0.00015,2]
[423592732,1780253251000,-5000.0,0.00012513,2]
[423592731,1780253251000,-4433.63482018,0.00012388,2]
[423592735,1780253251000,-1000.0,0.00013699,2]
[423592734,1780253251000,-353.62324,0.00013699,2]
[423592736,1780253251000,-176.89494921,0.00013898,2]
[423592733,1780253251000,-500.0,0.00013698,2]
[423592737,1780253251000,-172.55,0.00014602,2]
[423592739,1780253251000,-500.0,0.00014899,2]
[423592738,1780253251000,-353.78989842,0.00014603,2]
[423592741,1780253251000,-405.56,0.00014899,2]
[423592742,1780253251000,-594.44,0.00014899,2]
[423592743,1780253251000,-24829.10372602,0.000149,2]
[423592740,1780253251000,-232.86495608,0.00014899,2]
[423592787,1780253431000,-773.17950578,0.00014751,2]
[423592775,1780253431000,-2251.31959154,0.00014751,2]
[423592771,1780253431000,-161.63942516,0.000147,2]
[423592769,1780253431000,-206.37744074,0.00014603,2]
[423592773,1780253431000,-330.13397667,0.00014751,2]
[423592790,1780253431000,-500.0,0.00014799,2]
[423592792,1780253431000,-500.0,0.00014799,2]
[423592791,1780253431000,-500.0,0.00014799,2]
[423592785,1780253431000,-1645.36692601,0.00014751,2]
[423592793,1780253431000,-500.0,0.00014799,2]
[423592788,1780253431000,-156.97116927,0.00014799,2]
[423592795,1780253431000,-500.0,0.00014799,2]
[423592797,1780253431000,-500.0,0.00014799,2]
[423592796,1780253431000,-500.0,0.00014799,2]
[423592798,1780253431000,-500.0,0.00014799,2]
[423592805,1780253431000,-500.0,0.00014799,2]
[423592806,1780253431000,-500.0,0.00014799,2]
[423592807,1780253431000,-528.02407837,0.00014799,2]
[423592800,1780253431000,-500.0,0.00014799,2]
[423592803,1780253431000,-500.0,0.00014799,2]
[423592794,1780253431000,-156.50636453,0.00014799,2]
[423592802,1780253431000,-500.0,0.00014799,2]
[423592808,1780253432000,-8663.51391839,0.000148,2]
[423592868,1780253438000,-18868.00199853,0.000148,2]
[423592870,1780253438000,-2536.51378436,0.000148,2]
[423592864,1780253438000,-952.97724851,0.00014652,2]
[423592866,1780253438000,-4047.02275149,0.00014652,2]
[423592905,1780253438000,-31980.36477,0.000148,2]
[423592896,1780253438000,-12202.45412262,0.000148,2]
[423592899,1780253438000,-28205.33408764,0.000148,2]
[423592900,1780253438000,-3885.45215023,0.000148,2]
[423592903,1780253438000,-7535.9559512,0.000148,2]
[423592876,1780253438000,-2761.43621564,0.000148,2]
[423593115,1780253440000,-1258.43671265,0.000148,2]
[423593116,1780253440000,-7909.01872154,0.000148,2]
[423593114,1780253440000,-1019.05201729,0.000148,2]
[423593118,1780253440000,-2643.12489548,0.000148,2]
[423593119,1780253440000,-500.0,0.000148,2]
[423593117,1780253440000,-1485.55645327,0.000148,2]
[423593217,1780253443000,-468.942,0.000148,2]
[423593182,1780253443000,-1179.67946753,0.000148,2]
[423593180,1780253443000,-6112.49999837,0.000148,2]
[423593188,1780253443000,-813.5,0.000148,2]
[423593186,1780253443000,-285.0,0.000148,2]
[423593184,1780253443000,-3256.23330091,0.000148,2]
[423593527,1780253446000,-46355.38751532,0.000148,2]
[423593555,1780253446000,-500.0,0.00014899,2]
[423593542,1780253446000,-550.98845284,0.00014899,2]
[423593544,1780253446000,-500.0,0.00014899,2]
[423593540,1780253446000,-500.0,0.00014899,2]
[423593531,1780253446000,-500.0,0.00014899,2]
[423593525,1780253446000,-276.5150003,0.000148,2]
[423593550,1780253446000,-500.0,0.00014899,2]
[423593523,1780253446000,-63614.1874677,0.000148,2]
[423593521,1780253446000,-3056.59416296,0.000148,2]
[423593532,1780253446000,-501.48493491,0.00014899,2]
[423593520,1780253446000,-920.123,0.000148,2]
[423593519,1780253446000,-16334.21844678,0.000148,2]
[423593518,1780253446000,-24576.8024441,0.000148,2]
[423593535,1780253446000,-500.0,0.00014899,2]
[423593529,1780253446000,-294040.64697713,0.000148,2]
[423593539,1780253446000,-500.0,0.00014899,2]
[423593561,1780253446000,-500.0,0.00014899,2]
[423593537,1780253446000,-500.0,0.00014899,2]
[423593572,1780253446000,-500.0,0.00014899,2]
[423593548,1780253446000,-500.0,0.00014899,2]
[423593574,1780253446000,-500.0,0.00014899,2]
[423593570,1780253446000,-500.33137294,0.00014899,2]
[423593576,1780253446000,-196370.26530998,0.00015,2]
[423593563,1780253446000,-500.0,0.00014899,2]
[423593564,1780253446000,-624.18,0.00014899,2]
[423593566,1780253446000,-500.0,0.00014899,2]
[423593568,1780253446000,-500.0,0.00014899,2]
[423593559,1780253446000,-500.0,0.00014899,2]
[423593557,1780253446000,-500.0,0.00014899,2]
[423593533,1780253446000,-500.0,0.00014899,2]
[423593553,1780253446000,-500.0,0.00014899,2]
[423593546,1780253446000,-500.0,0.00014899,2]
[423593552,1780253446000,-500.0,0.00014899,2]
[423593993,1780253651000,880.81,0.00020548,120]
[423594056,1780254632000,-500.0,0.00013514,2]
[423594059,1780254632000,-500.0,0.00013514,2]
[423594058,1780254632000,-500.0,0.00013514,2]
[423594061,1780254632000,-500.0,0.00013514,2]
[423594060,1780254632000,-500.0,0.00013514,2]
[423594065,1780254632000,-500.0,0.00013514,2]
[423594062,1780254632000,-500.0,0.00013514,2]
[423594064,1780254632000,-500.0,0.00013514,2]
[423594057,1780254632000,-500.0,0.00013514,2]
[423594066,1780254632000,-500.0,0.00013514,2]
[423594067,1780254632000,-500.0,0.00013514,2]
[423594063,1780254632000,-500.0,0.00013514,2]
[423594054,1780254632000,-500.0,0.00013514,2]
[423594069,1780254632000,-500.0,0.00013514,2]
[423594050,1780254632000,-1200.0,0.00013512,2]
[423594049,1780254632000,-1200.0,0.00013511,2]
[423594055,1780254632000,-500.0,0.00013514,2]
[423594048,1780254632000,-300.0,0.00013511,2]
[423594052,1780254632000,-500.0,0.00013514,2]
[423594051,1780254632000,-500.0,0.00013514,2]
[423594045,1780254632000,-300.0,0.00013511,2]
[423594044,1780254632000,-163.36499944,0.00013414,2]
[423594046,1780254632000,-300.0,0.00013511,2]
[423594047,1780254632000,-300.0,0.00013511,2]
[423594042,1780254632000,-288.8677031,0.00013061,2]
[423594039,1780254632000,-5000.0,0.00012232,2]
[423594040,1780254632000,-1415.3358255,0.00012607,2]